Cogmind - Beta 14 @@@ ROGUE MODE // 2024.08.11 @ 21:33:24 Player: ktur Result: Destroyed by X-67 Chaingunner with Heavy Machine Gun Performance ------------- Evolutions (5) 2500 Regions Visited (14) 2800 Robots Destroyed (143) 715 Value Destroyed (6853) 6853 Prototype IDs (31) 620 Alien Tech Used (0) 0 Bonus (2592) 2592 TOTAL SCORE: 16080 Bonus ------- High Alert Combat Kills 1351 Follower Combat Kills 2299 Network Hubs Disabled 400 Registered with UFD 300 Met Imprinter 300 Built Enhanced Grunts 300 Met R17 at Cetus 500 Friendly Fire -2858 Cogmind --------- Core Integrity 0/1000 Matter 2/300 Energy 100/100 System Corruption 28% Temperature Cool (0) Movement Core (50) Location -5/Hub_04(d) Parts ------- > --- POWER (1) -------- (None) > --- PROPULSION (2) --- (None) > --- UTILITY (11) ----- Experimental Terrain Scan Processor Advanced Hacking Suite A0-MCA's Component Scanner > --- WEAPON (3) ------- (None) > --- INVENTORY (5) ---- Experimental Thermal Shield Improved Trap Extractor (3/6 Vortex) Heavy Rocket Launcher CPS Tube (2) Multitool Peak State ------------ > --- POWER ------------ Particle Reactor > --- PROPULSION ------- Overtuned Huge Scrapsphere > --- UTILITY ---------- Advanced Cooling System Huge Storage Unit Advanced Energy Well Advanced Energy Well Machine Analyzer Centrium Medium Armor Plating Centrium Medium Armor Plating Centrium Medium Armor Plating Centrium Medium Armor Plating Medium Regenerative Plating Experimental Thermal Shield > --- WEAPON ----------- Overtuned Beamcaster Advanced KE Penetrator Rocket Array > --- INVENTORY -------- Quantum Reactor Improved Cryofiber Web Advanced Cooling System Advanced Energy Well Compact Matter Pod Experimental Terrain Scan Processor Advanced Hacking Suite A0-MCA's Component Scanner Improved Trap Extractor Heavy Rocket Launcher Improved Remote Datajack CPS Tube CPS Tube CPS Tube Multitool Powered Hammer [Rating: 125] Favorites ----------- Power Light Ion Engine Engine Light Ion Engine Power Core Neutrino Core Reactor Quantum Reactor Propulsion Light Treads Treads Light Treads Wheel Overtuned Huge Scrapsphere Utility Seismic Detector Device Seismic Detector Storage Huge Storage Unit Processor Machine Analyzer Hackware Hacking Suite Protection Improved Medium Armor Plating Weapon Overtuned Barrage Gun Energy Gun Overtuned Beamcaster Energy Cannon Subdweller Beam Cannon Ballistic Gun Overtuned Barrage Gun Ballistic Cannon Light Cannon Launcher Rocket Array Special Weapon Mining Laser Impact Weapon Powered Hammer Slashing Weapon Makeshift Sword Piercing Weapon Makeshift Spear Build | -11 -10 -10 -9 -9 -6 -6 -6 -6 -5 -5 -5 -5 -5 -5 ------- Run | Yrd Mat Sub Rec Scr Fac Low Low Zio Pro Fac Ext Cet Arc Hub Slots Evolved 10 | . . . . . 8 . . . . 2 . . . . Power . | . . . . . . . . . . . . . . . Propulsion . | . . . . . . . . . . . . . . . Utility 9 | . . . . . 7 . . . . 2 . . . . Weapon 1 | . . . . . 1 . . . . . . . . . Parts Attached 193 | 7 5 21 1 5 42 . 3 7 3 34 11 11 16 27 Power 12 | 1 1 2 . . 3 . . . . 2 . 2 . 1 Engine 7 | 1 1 2 . . 2 . . . . 1 . . . . Core 3 | . . . . . 1 . . . . 1 . 1 . . Reactor 2 | . . . . . . . . . . . . 1 . 1 Propulsion 9 | 2 . 3 . 2 . . . . . . . . . 2 Treads 6 | 2 . 2 . 1 . . . . . . . . . 1 Leg . | . . . . . . . . . . . . . . . Wheel 3 | . . 1 . 1 . . . . . . . . . 1 Hover . | . . . . . . . . . . . . . . . Flight . | . . . . . . . . . . . . . . . Utility 83 | 2 1 1 1 1 19 . 1 2 3 22 7 6 7 10 Device 43 | 1 . 1 . . 9 . . 2 1 15 4 4 5 1 Storage 9 | 1 1 . . 1 2 . . . . 2 . 1 . 1 Processor 6 | . . . . . 3 . . . . 1 . . . 2 Hackware 3 | . . . . . 1 . . . . 1 . . . 1 Protection 22 | . . . 1 . 4 . 1 . 2 3 3 1 2 5 Artifact . | . . . . . . . . . . . . . . . Weapon 89 | 2 3 15 . 2 20 . 2 5 . 10 4 3 9 14 Energy Gun 29 | 2 . . . . 5 . . . . 6 2 2 5 7 Energy Cannon 4 | . . 4 . . . . . . . . . . . . Ballistic Gun 23 | . . 2 . 2 8 . 1 4 . . . 1 4 1 Ballistic Cannon 6 | . 2 4 . . . . . . . . . . . . Launcher 4 | . . . . . . . . 1 . . . . . 3 Special Weapon 15 | . 1 3 . . 6 . . . . 3 1 . . 1 Impact Weapon 6 | . . . . . 1 . 1 . . 1 1 . . 2 Slashing Weapon 1 | . . 1 . . . . . . . . . . . . Piercing Weapon 1 | . . 1 . . . . . . . . . . . . Special Melee Weapon . | . . . . . . . . . . . . . . . Unidentified Prototypes 8 | . . . . . 1 . . 1 . . 1 4 . 1 Corrupted Parts 2 | . . . . . . . . . . . . 1 1 . System Corruption 12 | . . . . . . . . . . . . 8 4 . Parts Lost 33 | . 1 4 . . 5 . 1 . . 9 2 . . 11 Power 4 | . 1 1 . . 1 . . . . . . . . 1 Propulsion 2 | . . 2 . . . . . . . . . . . . Utility 17 | . . 1 . . 2 . 1 . . 5 2 . . 6 Weapon 10 | . . . . . 2 . . . . 4 . . . 4 Highest Loss Streak 9 | . 1 1 . . 2 . 1 . . 3 1 . . 9 To Critical Strikes 1 | . . . . . . . . . . 1 . . . . Average Slot Usage (%) 91 | . 99 99 100 98 78 86 86 84 86 86 86 88 86 78 Engine 8 | . 13 13 14 14 4 6 6 6 6 3 . . . . Treads 12 | . 28 22 28 24 . . . . . . . . . . Wheel 4 | . . 5 . 1 6 6 6 6 6 5 5 5 5 4 Device 15 | . 14 13 6 . 19 26 26 26 26 26 28 29 30 23 Storage 11 | . 14 14 14 14 9 6 6 6 6 9 11 11 11 10 Processor 4 | . . . . . 10 13 13 13 13 10 7 5 5 6 Protection 7 | . . . 7 14 6 6 6 6 5 7 6 11 8 9 Energy Gun 5 | . 20 . . . 5 . . . . 8 16 15 10 12 Energy Cannon 3 | . . 13 14 . . . . . . . . . . . Ballistic Gun 7 | . . . . 13 8 20 19 18 20 5 . 1 6 . Ballistic Cannon 1 | . 6 5 . . . . . . . . . . . . Piercing Weapon 5 | . . 8 14 14 2 . . . . . . . . . Peak Build Rating 125 | 7 8 15 17 31 67 61 61 63 62 87 95 117 118 125 Average Rating 45 | 5 7 12 16 21 58 61 60 60 61 82 86 107 112 103 On Entrance 53 | . 7 8 15 17 31 61 61 60 61 62 87 95 115 116 Naked Turns . | . . . . . . . . . . . . . . . Heaviest Build 152 | 13 32 35 40 56 119 110 110 106 110 134 143 150 152 151 Greatest Support 40 | 40 40 40 40 40 20 20 20 20 20 20 20 20 20 20 Greatest Overweight (x) 7 | 1 . 2 . 2 5 5 5 5 5 6 7 7 7 7 Average Overweight (x) 3 | . . . . . 4 5 5 4 5 5 6 7 6 5 Largest Inventory Capacity 25 | 8 15 15 15 20 25 25 25 25 25 25 25 25 25 25 Average Capacity 20 | 7 12 15 15 19 24 25 25 25 25 25 25 25 25 22 Most Carried 25 | 6 14 15 15 20 25 24 24 25 25 25 25 25 25 25 Average Carried 19 | 3 8 14 14 16 23 24 24 24 24 24 24 24 24 21 Final Capacity 25 | 8 15 15 15 20 25 25 25 25 25 25 25 25 25 5 Final Carried 25 | 5 14 14 15 20 24 24 24 25 25 25 24 25 25 5 Class Distribution -------------------- 55% | Mutant 41% | Scavenger-Scrapper Dominant Class ---------------- Mutant | -10/Materials Mutant | -10/Subcaves Mutant | -9/Recycling Mutant | -9/Scraptown Scavenger-Scrapper | -6/Factory Scavenger-Scrapper | -6/Lower Caves Scavenger-Scrapper | -6/Lower Caves Scavenger-Scrapper | -6/Zion Scavenger-Scrapper | -5/Proximity Caves Scavenger-Scrapper | -5/Factory Scavenger-Scrapper | -5/Extension Scavenger-Scrapper | -5/Cetus Scavenger-Scrapper | -5/Archives Scavenger-Scrapper | -5/Hub_04(d) Resources | -11 -10 -10 -9 -9 -6 -6 -6 -6 -5 -5 -5 -5 -5 -5 ----------- Run | Yrd Mat Sub Rec Scr Fac Low Low Zio Pro Fac Ext Cet Arc Hub Matter Collected 4119 | 270 18 485 10 40 1006 84 127 118 30 844 189 199 495 204 Remotely . | . . . . . . . . . . . . . . . Salvage Created 7538 | 71 145 630 122 . 2100 170 245 . . 1602 848 587 342 676 Parts 337 | 8 7 32 3 . 93 9 13 . . 77 32 24 21 18 Haulers Intercepted 2 | . . . . . 1 . . . . 1 . . . . Recyclers Shooed 7 | . . . . . 6 . . . . 1 . . . . Parts Field Recycled . | . . . . . . . . . . . . . . . Retrieved Matter . | . . . . . . . . . . . . . . . Parts Self-Destructed 41 | . . 17 . . . 9 14 1 . . . . . . Prevented . | . . . . . . . . . . . . . . . Kills | -11 -10 -10 -9 -9 -6 -6 -6 -6 -5 -5 -5 -5 -5 -5 ------- Run | Yrd Mat Sub Rec Scr Fac Low Low Zio Pro Fac Ext Cet Arc Hub Combat Hostiles Destroyed 110 | . 3 12 . . 29 3 4 . . 22 12 7 1 17 Melee 6 | . . 2 . . 4 . . . . . . . . . Guns 67 | . 3 . . . 24 3 4 . . 18 8 3 1 3 Cannons 10 | . . 10 . . . . . . . . . . . . AOE 10 | . . . . . . . . . . . . . . 10 Classes Destroyed 22 | 1 1 5 1 . 8 . 1 . . . 3 1 . 1 Worker 5 | . . . . . 2 . . . . 2 . . . 1 Builder 3 | . . . . . 1 . . . . 1 1 . . . Tunneler 4 | 3 1 . . . . . . . . . . . . . Hauler 2 | . . . . . 1 . . . . 1 . . . . Recycler 5 | . . . 2 . 2 . . . . 1 . . . . Minesweeper 1 | . . . . . . . 1 . . . . . . . Operator 8 | . . . . . . . . . . . 1 . 7 . Watcher 2 | . . . . . . . . . . . . 1 . 1 Swarmer 19 | . . 1 . . 9 1 2 . . 5 1 . . . Grunt 31 | . 3 2 . . 11 1 1 . . 2 7 . . 4 Brawler 2 | . . . . . 1 . . . . . . . . 1 Duelist 5 | . . . . . 2 . . . . . . . . 3 Protector 1 | . . . . . . . . . . . . . . 1 Sentry 13 | . . 1 . . 3 1 1 . . 4 2 . 1 . Specialist 1 | . . . . . . . . . . . 1 . . . Hunter 9 | . . . . . 2 . . . . 3 . . . 4 Programmer 10 | . . . . . 1 . . . . 8 . . . 1 Behemoth 1 | . . . . . . . . . . . 1 . . . Cetus Guard 7 | . . . . . . . . . . . . 7 . . Enhanced Grunt 1 | . . . . . . . . . . . . . . 1 Lightning 3 | . . . . . . . . . . . . . . 3 Artisan 1 | . . 1 . . . . . . . . . . . . Cobbler 1 | . . 1 . . . . . . . . . . . . Subdweller 8 | . . 8 . . . . . . . . . . . . Scrapoid 1 | . . . . . 1 . . . . . . . . . Best Kill Streak 8 | 1 2 2 1 . 5 3 3 . . 3 4 4 3 8 Combat Bots Only 7 | . 2 2 . . 4 3 3 . . 3 3 3 1 7 Max Kills in Single Turn 2 | 1 1 1 1 . 2 1 1 . . 2 1 1 1 2 Gunslinging . | . . . . . . . . . . . . . . . Exploded 2 | . . . . . . . . . . . . . . 2 Melee 1 | . . 1 . . 1 . . . . . . . . . Uniques/NPCs Destroyed 1 | . . . . . . . . . . . . 1 . . A7 (-5/Cetus) Combat | -11 -10 -10 -9 -9 -6 -6 -6 -6 -5 -5 -5 -5 -5 -5 -------- Run | Yrd Mat Sub Rec Scr Fac Low Low Zio Pro Fac Ext Cet Arc Hub Hostile Shots Fired 684 | . 21 53 . . 176 11 36 . . 127 53 12 3 192 Missed 190 | . 7 17 . . 62 5 12 . . 29 13 4 . 41 Damage Taken 9312 | . 192 764 . . 1772 58 305 . . 1637 451 137 35 3961 Core 1373 | . 29 153 . . 161 11 11 . . 207 45 14 . 742 Absorbed by Shields 1305 | . . . . . 91 . . . . 490 397 107 36 184 Ignored by Resistances 130 | . . . . . . . . . . . . . . 130 Regen/Repaired (Parts) 494 | . . . . . 66 . . 1 . 163 101 44 . 119 Core Remaining (%) 68 | 100 . . . 27 . . . . 78 . . . . . Volleys Fired 455 | 8 24 53 . . 92 7 12 . . 86 44 45 38 46 Largest 4 | 2 2 2 . . 3 3 3 . . 4 3 3 3 3 Hottest 300 | 100 100 140 . . 190 90 90 . . 180 280 300 300 300 Shots Fired 1029 | 16 41 91 . . 220 21 36 . . 226 126 96 73 83 Gun 904 | 16 26 2 . . 215 21 36 . . 222 125 96 73 72 Cannon 92 | . 8 84 . . . . . . . . . . . . Launcher 11 | . . . . . . . . . . . . . . 11 Special 22 | . 7 5 . . 5 . . . . 4 1 . . . Kinetic 454 | . 8 61 . . 104 21 36 . . 127 . 19 65 13 Thermal 553 | 16 33 30 . . 111 . . . . 94 125 77 8 59 Explosive 11 | . . . . . . . . . . . . . . 11 Electromagnetic 2 | . . . . . . . . . . 2 . . . . Robot Hit Streak 29 | 3 9 27 . . 29 6 6 . . 20 15 14 7 11 Robot Miss Streak 7 | 2 4 2 . . 3 5 4 . . 4 5 3 7 5 Penetration Max 1 | . . . . . . . . . . . . 1 1 . Secondary Targets 12 | . . . . . 4 . 1 . . 4 1 . . 2 Max Gunslinging Chain 1 | . . . . . 1 . 1 . . 1 1 . . 1 Shots Hit Robots 640 | 9 20 70 5 . 153 9 19 . . 136 75 64 36 44 Core Hits 357 | 4 10 24 2 . 71 6 9 . . 48 30 26 17 110 Critical Kills 3 | . . . . . 1 . . . . 1 . . 1 . Critical Parts Destroyed 8 | . . . . . 2 . . . . 4 . . 2 . Critical Strikes 62 | 1 . 2 . . 13 . . . . 14 10 14 4 4 Burn 49 | 1 . . . . 10 . . . . 9 10 14 1 4 Destroy 11 | . . . . . 3 . . . . 5 . . 3 . Blast 2 | . . 2 . . . . . . . . . . . . Melee Attacks 107 | . . 54 8 . 24 . 3 . . 8 4 . . 6 Impact 22 | . . . . . 1 . 3 . . 8 4 . . 6 Slashing 8 | . . 8 . . . . . . . . . . . . Piercing 77 | . . 46 8 . 23 . . . . . . . . . Sneak Attacks 6 | . . 1 3 . 1 . . . . 1 . . . . Combat Hostiles 1 | . . . . . 1 . . . . . . . . . Follow-up Attacks . | . . . . . . . . . . . . . . . Damage Inflicted 18567 | 112 289 1517 227 . 3372 196 406 . . 3061 2214 2085 1078 4010 Guns 13383 | 112 265 10 . . 2966 196 406 . . 2950 2214 2085 1078 1101 Cannons 998 | . . 998 . . . . . . . . . . . . Explosions 2909 | . . . . . . . . . . . . . . 2909 Melee 1253 | . . 509 227 . 406 . . . . 111 . . . . Ramming 24 | . 24 . . . . . . . . . . . . . Kinetic 5169 | . . 706 . . 1021 196 406 . . 1368 . 487 872 113 Thermal 9182 | 112 265 302 . . 1945 . . . . 1552 2214 1598 206 988 Explosive 2909 | . . . . . . . . . . . . . . 2909 Electromagnetic 30 | . . . . . . . . . . 30 . . . . Impact 111 | . . . . . . . . . . 111 . . . . Slashing . | . . . . . . . . . . . . . . . Piercing 1142 | . . 509 227 . 406 . . . . . . . . . Highest Corruption 28 | . . . . . 1 1 1 1 . 4 4 12 12 28 Average Corruption 5 | . . . . . 1 1 1 1 . 3 4 12 9 22 Corruption Purged 16 | . . . . . . . . . . . . . 16 . Corruption Blocked . | . . . . . . . . . . . . . . . Effects 91 | . . . . . 4 2 3 . . 13 26 17 12 14 Message Errors 21 | . . . . . . . 1 . . 3 6 4 3 4 Matter Fused 21 | . . . . . . . 1 . . 3 8 5 3 1 Heat Flow Errors 12 | . . . . . 2 . 1 . . 1 3 3 1 1 Energy Discharges 12 | . . . . . 1 1 . . . 2 4 2 2 . Parts Rejected 1 | . . . . . 1 . . . . . . . . . Data Loss (minor) 9 | . . . . . . 1 . . . 2 3 1 1 1 Data Loss (major) 1 | . . . . . . . . . . . 1 . . . Misfires 3 | . . . . . . . . . . 2 1 . . . Alerts 3 | . . . . . . . . . . . . 1 1 1 Misdirections 4 | . . . . . . . . . . . . . . 4 Weapon Failures 4 | . . . . . . . . . . . . 1 1 2 Overload Shots . | . . . . . . . . . . . . . . . Overflow Damage 187 | . . 20 45 . . . . . . 91 . . . 31 Projectiles 20 | . . 20 . . . . . . . . . . . . Explosions 31 | . . . . . . . . . . . . . . 31 Melee 136 | . . . 45 . . . . . . 91 . . . . Knockbacks 7 | . . 7 . . . . . . . . . . . . Impact . | . . . . . . . . . . . . . . . Kinetic 7 | . . 7 . . . . . . . . . . . . Secondary . | . . . . . . . . . . . . . . . Self-Inflicted Damage 468 | . . . . . . . . . . . . . . 468 Shots 24 | . . . . . . . . . . . . . . 24 Rammed 5 | . 5 . . . . . . . . . . . . . Targets Rammed 5 | . 5 . . . . . . . . . . . . . Kicked . | . . . . . . . . . . . . . . . Crushed . | . . . . . . . . . . . . . . . Highest Temperature 548 | 157 281 54 . . 303 65 114 . . 366 461 440 332 548 Average Temperature 114 | 69 75 28 . . 115 33 39 . . 115 135 169 151 145 Received Heat Transfer 1273 | . 114 60 . . 516 21 78 . . 182 142 . . 160 Effects 13 | . 2 . . . . . . . . 5 3 . 1 2 Shutdowns 2 | . . . . . . . . . . 1 1 . . . Energy Bleed 1 | . . . . . . . . . . . . . 1 . Interference 7 | . 2 . . . . . . . . 3 2 . . . Short Circuit 2 | . . . . . . . . . . . . . . 2 Damage (minor) 1 | . . . . . . . . . . 1 . . . . Siege Activations . | . . . . . . . . . . . . . . . Robots Corrupted . | . . . . . . . . . . . . . . . Combat Hostiles . | . . . . . . . . . . . . . . . Parts Fried 3 | . . . . . . . . . . 3 . . . . Impact Corruptions 1 | . . . . . . . . . . 1 . . . . Robots Melted 18 | . . . . . 2 . . . . 4 4 4 . 4 Combat Hostiles 17 | . . . . . 1 . . . . 4 4 4 . 4 Parts Melted 83 | 1 1 1 . . 18 . . . . 27 15 11 3 6 Heat Transferred 23050 | 407 777 555 . . 5424 . . . . 4187 4975 4250 450 2025 Parts Sabotaged . | . . . . . . . . . . . . . . . Parts Stolen . | . . . . . . . . . . . . . . . Parts Stripped . | . . . . . . . . . . . . . . . Power Chain Reactions . | . . . . . . . . . . . . . . . Alert | -11 -10 -10 -9 -9 -6 -6 -6 -6 -5 -5 -5 -5 -5 -5 ------- Run | Yrd Mat Sub Rec Scr Fac Low Low Zio Pro Fac Ext Cet Arc Hub Peak Influence 1351 | 15 91 . 86 . 429 . . . . 337 1351 1008 624 1232 Initial 756 | . 9 . 26 . . . . . . . 63 756 323 148 Average 298 | 5 42 . 70 . 210 . . . . 128 372 913 518 686 Maximum Alert Level 4 | . . . . . 2 . . . . 1 4 3 2 4 Low Security (%) 46 | 100 100 . 100 . 35 . . . . 69 33 . . 5 Level 1 25 | . . . . . 53 . . . . 30 38 . 3 18 Level 2 14 | . . . . . 11 . . . . . 10 . 96 32 Level 3 9 | . . . . . . . . . . . 10 100 . 25 Level 4 2 | . . . . . . . . . . . 7 . . 18 Level 5 . | . . . . . . . . . . . . . . . High Security . | . . . . . . . . . . . . . . . Max Security . | . . . . . . . . . . . . . . . Squads Dispatched 41 | . 1 . . . 9 . 1 . . 6 9 . . 15 Investigation 17 | . . . . . 4 . . . . 3 5 . . 5 Extermination 5 | . . . . . 2 . . . . 2 . . . 1 Reinforcement 10 | . 1 . . . 2 . . . . 1 2 . . 4 Assault 5 | . . . . . . . 1 . . . 2 . . 2 Garrison 4 | . . . . . 1 . . . . . . . . 3 Intercept . | . . . . . . . . . . . . . . . Searches Triggered . | . . . . . . . . . . . . . . . Construction Impeded 3 | . . . . . . . . . . . 2 . . 1 Haulers Reinforced 1 | . . . . . 1 . . . . . . . . . Active Scanning Responses . | . . . . . . . . . . . . . . . Cargo Convoy Interrupts . | . . . . . . . . . . . . . . . Stealth | -11 -10 -10 -9 -9 -6 -6 -6 -6 -5 -5 -5 -5 -5 -5 --------- Run | Yrd Mat Sub Rec Scr Fac Low Low Zio Pro Fac Ext Cet Arc Hub Distress Signals 12 | . 1 . . . 2 . . . . 2 1 2 . 4 Communications Jammed . | . . . . . . . . . . . . . . . Distress Signals . | . . . . . . . . . . . . . . . Times Spotted 262 | . 10 19 . . 44 3 11 . . 34 61 9 25 46 Peak Tracking Total 14 | . 4 6 . . 5 2 9 . . 5 8 5 1 14 Tactical Retreats 24 | . 1 1 . . 4 . 3 . . 3 9 . . 3 Traps | -11 -10 -10 -9 -9 -6 -6 -6 -6 -5 -5 -5 -5 -5 -5 ------- Run | Yrd Mat Sub Rec Scr Fac Low Low Zio Pro Fac Ext Cet Arc Hub Traps Triggered 10 | . . . . . 3 . . . . 2 4 . . 1 Indirectly . | . . . . . . . . . . . . . . . Trap Hack Attempts . | . . . . . . . . . . . . . . . Triggered . | . . . . . . . . . . . . . . . Disarmed . | . . . . . . . . . . . . . . . Reprogrammed . | . . . . . . . . . . . . . . . Reused 1 | . . 1 . . . . . . . . . . . . Traps Extracted . | . . . . . . . . . . . . . . . Installed 1 | . . 1 . . . . . . . . . . . . Triggered 2 | . . . . . . . . . . . 2 . . . Most Traps Carried 3 | . . . . 3 3 3 3 3 3 3 3 3 3 3 Objects Rigged 1 | . . . . . . . . . . . . . . 1 Machines | -11 -10 -10 -9 -9 -6 -6 -6 -6 -5 -5 -5 -5 -5 -5 ---------- Run | Yrd Mat Sub Rec Scr Fac Low Low Zio Pro Fac Ext Cet Arc Hub Machines Disabled 11 | . . 1 . . . . . . . 3 2 . 4 1 Max in Single Turn 1 | . . 1 . . . . . . . 1 1 . 1 1 Network Hub 2 | . . . . . . . . . . . . . . 2 Machines Repaired . | . . . . . . . . . . . . . . . Machines Dismantled . | . . . . . . . . . . . . . . . Machines Sabotaged 2 | . . . . . . . . . . . . . . 2 Overloaded Fab Kills . | . . . . . . . . . . . . . . . Hacking | -11 -10 -10 -9 -9 -6 -6 -6 -6 -5 -5 -5 -5 -5 -5 --------- Run | Yrd Mat Sub Rec Scr Fac Low Low Zio Pro Fac Ext Cet Arc Hub Machines Accessed 45 | . 2 2 4 2 9 . . . . 6 14 . . 6 Terminals 30 | . 2 . 3 . 5 . . . . 2 12 . . 6 Fabricators 2 | . . . . . 1 . . . . 1 . . . . Repair Stations . | . . . . . . . . . . . . . . . Recycling Units 8 | . . . 1 . 3 . . . . 2 2 . . . Scanalyzers . | . . . . . . . . . . . . . . . Garrison Access 1 | . . . . . . . . . . 1 . . . . Total Hacks 101 | . 9 5 14 5 16 . . . . 11 29 . . 12 Successful 43 | . 3 5 6 5 7 . . . . 6 7 . . 4 Failed 58 | . 6 . 8 . 9 . . . . 5 22 . . 8 Catastrophic 14 | . . . 2 . 2 . . . . 1 6 . . 3 Database Lockouts . | . . . . . . . . . . . . . . . Manual 56 | . 8 . 11 . 12 . . . . 5 6 2 . 12 Terminals 73 | . 9 . 13 . 8 . . . . 5 26 . . 12 Fabricators 4 | . . . . . 2 . . . . 2 . . . . Repair Stations . | . . . . . . . . . . . . . . . Recycling Units 13 | . . . 1 . 6 . . . . 3 3 . . . Scanalyzers . | . . . . . . . . . . . . . . . Garrison Access 1 | . . . . . . . . . . 1 . . . . Terminal Hacks 28 | . 3 5 5 5 3 . . . . 2 5 . . . Record 8 | . . 4 . 4 . . . . . . . . . . Part Schematic 2 | . . . 1 . 1 . . . . . . . . . Robot Analysis 5 | . 1 . 4 . . . . . . . . . . . Open Door 5 | . . . . . . . . . . . 5 . . . Recycling Unit Index 1 | . . . . . 1 . . . . . . . . . Unreport Threat 3 | . . . . . 1 . . . . 2 . . . . Locate Traps 2 | . 2 . . . . . . . . . . . . . Derelict Proto ID Bank 2 | . . 1 . 1 . . . . . . . . . . Fabricator Hacks 3 | . . . . . 1 . . . . 2 . . . . Load Schematic 2 | . . . . . 1 . . . . 1 . . . . Build 1 | . . . . . . . . . . 1 . . . . Repair Station Hacks . | . . . . . . . . . . . . . . . Recycling Unit Hacks . | . . . . . . . . . . . . . . . Scanalyzer . | . . . . . . . . . . . . . . . Garrison Access Hacks . | . . . . . . . . . . . . . . . Unauthorized Hacks 12 | . . . 1 . 3 . . . . 2 2 . . 4 Terminals 4 | . . . . . . . . . . . . . . 4 Detonate 1 | . . . . . . . . . . . . . . 1 Sabotage 3 | . . . . . . . . . . . . . . 3 Fabricators 1 | . . . . . 1 . . . . . . . . . Recompile 1 | . . . . . 1 . . . . . . . . . Repair Stations 6 | . . . . . 2 . . . . 2 2 . . . Recycling Units 1 | . . . 1 . . . . . . . . . . . Tunnel 1 | . . . 1 . . . . . . . . . . . Fedlink 3 | . . . . . . . . . . 1 2 . . . Scrapoids 3 | . . . . . 2 . . . . 1 . . . . Scanalyzers . | . . . . . . . . . . . . . . . Garrison Access . | . . . . . . . . . . . . . . . Data Cores Recovered 1 | . . . . . . . . . . . 1 . . . Used . | . . . . . . . . . . . . . . . Hacking Detections 25 | . 2 . 3 . 4 . . . . 3 11 . . 2 Full Trace Events 7 | . 1 . 1 . 1 . . . . 1 2 . . 1 Feedback Events . | . . . . . . . . . . . . . . . Feedback Blocked . | . . . . . . . . . . . . . . . Robot Schematics Acquired . | . . . . . . . . . . . . . . . Robots Built . | . . . . . . . . . . . . . . . Authchips . | . . . . . . . . . . . . . . . Time . | . . . . . . . . . . . . . . . Total Robot Build Rating . | . . . . . . . . . . . . . . . Part Schematics Acquired 2 | . . . 1 . 1 . . . . . . . . . Parts Built 2 | . . . . . . . . . . 2 . . . . Authchips 1 | . . . . . . . . . . 1 . . . . Time 31 | . . . . . . . . . . 31 . . . . Total Part Build Rating 10 | . . . . . . . . . . 10 . . . . Parts Repaired . | . . . . . . . . . . . . . . . Time . | . . . . . . . . . . . . . . . Parts Recycled . | . . . . . . . . . . . . . . . Recycled Matter . | . . . . . . . . . . . . . . . Retrieved Matter . | . . . . . . . . . . . . . . . Retrieved Components . | . . . . . . . . . . . . . . . Parts Scanalyzed . | . . . . . . . . . . . . . . . Part Schematics Acquired . | . . . . . . . . . . . . . . . Parts Damaged . | . . . . . . . . . . . . . . . Bothacking | -11 -10 -10 -9 -9 -6 -6 -6 -6 -5 -5 -5 -5 -5 -5 ------------ Run | Yrd Mat Sub Rec Scr Fac Low Low Zio Pro Fac Ext Cet Arc Hub Used RIF Installer . | . . . . . . . . . . . . . . . Robots Hacked 1 | . . . . . . . . . . 1 . . . . Non-combat 1 | . . . . . . . . . . 1 . . . . Combat . | . . . . . . . . . . . . . . . Robot Hacks Applied 1 | . . . . . . . . . . 1 . . . . find_recycling 1 | . . . . . . . . . . 1 . . . . Relay Couplers Released . | . . . . . . . . . . . . . . . Fabnet Peak Effective % . | . . . . . . . . . . . . . . . Robots Rewired 7 | . . . . . . . . . . . 7 . . . Allies Hacked . | . . . . . . . . . . . . . . . Hacks Repelled . | . . . . . . . . . . . . . . . Allies | -11 -10 -10 -9 -9 -6 -6 -6 -6 -5 -5 -5 -5 -5 -5 -------- Run | Yrd Mat Sub Rec Scr Fac Low Low Zio Pro Fac Ext Cet Arc Hub Total Allies 34 | . . . . . 10 . . . . 5 12 7 . . Largest Group 7 | . . . . . 5 . . . . 5 6 7 6 4 Highest-Rated Group 698 | . . . . . 146 . . . . 235 319 698 576 384 Highest-Rated Ally 159 | . . . . . 31 . . . . 47 159 122 96 96 Total Orders 3 | . . . . . . . . . . . . . 2 1 STAY 2 | . . . . . . . . . . . . . 1 1 FOLLOW 1 | . . . . . . . . . . . . . 1 . Ally Attacks 325 | . . . . . 68 . . . . 43 140 12 21 41 Total Damage 8377 | . . . . . 925 . . . . 967 3542 376 789 1778 Kills 64 | . . . . . 7 . . . . 6 36 2 3 10 Allies Corrupted 2 | . . . . . . . . . . 1 1 . . . Allies Melted . | . . . . . . . . . . . . . . . Intel | -11 -10 -10 -9 -9 -6 -6 -6 -6 -5 -5 -5 -5 -5 -5 ------- Run | Yrd Mat Sub Rec Scr Fac Low Low Zio Pro Fac Ext Cet Arc Hub Robot Analysis Total 5 | . 1 . 4 . . . . . . . . . . . Derelict Logs Recovered 10 | . . 2 . 5 . . . 1 2 . . . . . Drone Launches . | . . . . . . . . . . . . . . . Drone Recoveries . | . . . . . . . . . . . . . . . Exploration | -11 -10 -10 -9 -9 -6 -6 -6 -6 -5 -5 -5 -5 -5 -5 ------------- Run | Yrd Mat Sub Rec Scr Fac Low Low Zio Pro Fac Ext Cet Arc Hub Turns Passed 15650 | 159 865 3020 388 3765 1590 305 356 835 265 1313 1151 404 561 673 Spaces Moved 8734 | 78 458 1824 230 1579 963 235 269 685 212 743 658 188 211 401 Core 119 | 5 . . . . . . . . . . . . . 114 Treads 3114 | 73 458 970 230 1383 . . . . . . . . . . Legs . | . . . . . . . . . . . . . . . Wheels 5501 | . . 854 . 196 963 235 269 685 212 743 658 188 211 287 Hover . | . . . . . . . . . . . . . . . Flight . | . . . . . . . . . . . . . . . Fastest Speed 50 | 50 160 115 160 90 90 120 120 110 120 120 130 140 130 50 Average Speed 148 | 153 160 145 160 219 118 120 120 119 120 129 131 140 137 114 Slowest Speed 360 | 160 160 240 160 360 120 120 120 120 120 130 140 140 140 150 Overloaded Moves . | . . . . . . . . . . . . . . . Propulsion Burnouts . | . . . . . . . . . . . . . . . Robots Hopped 1 | . . . . . 1 . . . . . . . . . Cave-ins Triggered 1 | . . . . . . . . . . . . . . 1 Exploration Rate (%) 57 | 6 87 90 51 90 30 57 47 85 43 16 83 56 85 42 Regions Visited 14 Branch Regions 11 Pre-discovered Areas 6 | . . 2 1 1 . . . 2 . . . . . . Known Exits Taken 1 | . . . . . . . . . 1 . . . . . Unknown Exits Taken 13 | 1 1 1 1 1 1 1 1 1 . 1 1 1 1 . Scrap Searched 23 | . . 7 . 9 . 1 3 1 2 . . . . . Spaces Dug 25 | . . 3 1 . 6 . 3 . . 6 . . . 6 Terrain Destroyed 198 | . 1 4 1 . 8 . 4 . . 10 10 18 20 122 Melee 24 | . . 2 1 . 6 . 3 . . 6 . . . 6 Projectile 72 | . 1 2 . . 2 . 1 . . 4 10 18 20 14 AOE 102 | . . . . . . . . . . . . . . 102 Terrain Rammed . | . . . . . . . . . . . . . . . Walls Destroyed . | . . . . . . . . . . . . . . . Machines Disabled . | . . . . . . . . . . . . . . . Actions | -11 -10 -10 -9 -9 -6 -6 -6 -6 -5 -5 -5 -5 -5 -5 --------- Run | Yrd Mat Sub Rec Scr Fac Low Low Zio Pro Fac Ext Cet Arc Hub Total 10742 | 99 531 2033 243 1892 1292 252 286 702 224 1016 898 293 427 554 Wait 911 | . 29 55 . 270 129 11 . 1 1 100 98 25 145 47 Move 8717 | 77 457 1823 229 1578 960 234 268 684 211 742 657 187 210 400 Hop 1 | . . . . . 1 . . . . . . . . . Pick Up 112 | 7 10 13 2 19 17 . . 2 3 21 2 10 5 1 Fast Attach 66 | 5 . 4 1 3 19 . 1 7 2 7 2 4 7 4 Attach 57 | 2 1 6 . 1 9 . . . . 17 2 2 4 13 Detach 15 | . . . 1 . 5 . . . 1 1 . 1 3 3 Swap 70 | . 4 11 . 1 14 . 2 . 1 10 7 5 5 10 Drop 133 | . 1 13 2 20 19 . . 8 5 15 4 14 10 22 Fire 455 | 8 24 53 . . 92 7 12 . . 86 44 45 38 46 Melee 107 | . . 54 8 . 24 . 3 . . 8 4 . . 6 Ram . | . . . . . . . . . . . . . . . Kick . | . . . . . . . . . . . . . . . Crush 5 | . 5 . . . . . . . . . . . . . Escape Stasis 48 | . . . . . . . . . . 8 39 . . 1 Rewire 39 | . . . . . . . . . . . 39 . . . Trap 1 | . . 1 . . . . . . . . . . . . Miscellaneous 5 | . . . . . 3 . . . . 1 . . . 1 Route ------- -11/Scrapyard -10/Materials (discovered 6 exits: [*Mat x3] / [*Min x2] / *Sub) -10/Subcaves (discovered 2 exits: [*Mat] / *Rec) -9/Recycling -9/Scraptown (discovered 2 exits: *Fac x2) -6/Factory (discovered 3 exits: *Fac x2 / [*Low]) -6/Lower Caves -6/Lower Caves -6/Zion -5/Proximity Caves -5/Factory (discovered 3 exits: *Fac x2 / *Ext) -5/Extension (discovered 2 exits: *Fac / *Cet) -5/Cetus (discovered 2 exits: *Fac / [*Arc]) -5/Archives (discovered 2 exits: *Fac / *Hub) -5/Hub_04(d) (discovered 1 exit: *Fac) History --------- Turn | Location | Event 3 | -11/Scrapyard | Discovered new exit (range 16) 160 | -11/Scrapyard | Entered Materials 186 | -10/Materials | Discovered new exit (range 15) 313 | -10/Materials | Build established: Mutant 474 | -10/Materials | Discovered new exit (range 16) 557 | -10/Materials | Discovered new exit (range 9) 711 | -10/Materials | Discovered new exit (range 7) 847 | -10/Materials | Discovered new exit (range 4) 1020 | -10/Materials | Discovered new exit (range 3) 1025 | -10/Materials | Entered Subcaves 1029 | -10/Subcaves | Discovered new exit (range 5) 1390 | -10/Subcaves | Visited 4L-MR0's lab 1416 | -10/Subcaves | Found Gun Armor 1707 | -10/Subcaves | A swath of the cavern ceiling suddenly collapsed 1824 | -10/Subcaves | Shifting Twisted Machinery released Riot Gun 1860 | -10/Subcaves | Shifting Twisted Machinery released Flamer 1915 | -10/Subcaves | Core integrity fell below 50% 2013 | -10/Subcaves | Learned Materials stockpile data 2021 | -10/Subcaves | Shifting Twisted Machinery released Sub. Beam Cannon 2026 | -10/Subcaves | Shifting Twisted Machinery released Hvy. Riot Gun 2323 | -10/Subcaves | A swath of the cavern ceiling suddenly collapsed 2509 | -10/Subcaves | Ambushed by angry Subdweller bent on revenge 2993 | -10/Subcaves | Shifting Twisted Machinery released Riot Gun 3105 | -10/Subcaves | Shifting Twisted Machinery released Spk. Treads 3131 | -10/Subcaves | Visited Clippyterm 3136 | -10/Subcaves | Learned location of Extension (-5) 3136 | -10/Subcaves | Learned Factory stockpile data 4041 | -10/Subcaves | Discovered new exit (range 3) 4045 | -10/Subcaves | Entered Recycling 4394 | -9/Recycling | Scanned before Scraplab entrance 4417 | -9/Recycling | Entered Scraplab 4430 | -9/Recycling | Discovered new exit (range 2) 4433 | -9/Recycling | Entered Scraptown 4523 | -9/Scraptown | Heard Great Nut preacher, LISTEN AND RECITE! 4555 | -9/Scraptown | Scanned Subdweller tech in exchange for log data 4558 | -9/Scraptown | Learned Research terminal intel 4560 | -9/Scraptown | Learned 8 Factory zone layouts 4561 | -9/Scraptown | Learned Factory garrison access intel 4563 | -9/Scraptown | Learned location of Testing (-3) 4565 | -9/Scraptown | Learned Research stockpile data 4585 | -9/Scraptown | Discovered new exit (range 13) 5523 | -9/Scraptown | Visited CPS Storage 5628 | -9/Scraptown | Visited Cyclists 5710 | -9/Scraptown | Visited UFD Registry 5710 | -9/Scraptown | Registered with UFD as "Gunbot" 5813 | -9/Scraptown | Entered Cyclist Reading Room 5873 | -9/Scraptown | Visited TADAMA 5910 | -9/Scraptown | Visited Spacefarers 6000 | -9/Scraptown | Visited Bundlers 6220 | -9/Scraptown | Visited IN-MT5's Study 6254 | -9/Scraptown | Visited The Evicted 6412 | -9/Scraptown | Visited Observation Area 6473 | -9/Scraptown | Visited A0-MCA Data Center 6488 | -9/Scraptown | Given a B+ rating by A0-MCA 6494 | -9/Scraptown | Found A0-MCA's Component Scanner 6546 | -9/Scraptown | Visited Infowarlord's Domain 6567 | -9/Scraptown | Found Exp. Terrain Scan Processor 6619 | -9/Scraptown | Visited Modified Component R&D 6716 | -9/Scraptown | Visited Abandonware Association 6774 | -9/Scraptown | Learned abandonware demo "OVRCLOCK.EXE" 6787 | -9/Scraptown | Learned abandonware demo "HACKBUD.EXE" 6853 | -9/Scraptown | Visited Scrap Suit Storage 6894 | -9/Scraptown | Visited Chapter 10 6943 | -9/Scraptown | Visited LU-1G1's Boring Crew 6983 | -9/Scraptown | Visited Science Guys 7440 | -9/Scraptown | Visited Research Penetration Think Tank 7926 | -9/Scraptown | Found Scrap Suit 8196 | -9/Scraptown | Discovered new exit (range 3) 8198 | -9/Scraptown | Entered Factory 8198 | -6/Factory | Evolved 8 slots: Utility x7, Weapon x1 8201 | -6/Factory | Loaded intel: 4 garrison access locations 8592 | -6/Factory | Discovered new exit (range 15) 8691 | -6/Factory | Scrapoid reinforcements arrived 9003 | -6/Factory | Build established: Scavenger-Scrapper 9045 | -6/Factory | Found Scrap Suit 9462 | -6/Factory | Discovered new exit (range 7) 9624 | -6/Factory | Discovered new exit (range 13) 9713 | -6/Factory | Scrapoid reinforcements arrived 9725 | -6/Factory | Garrison activated, responded to threat 9735 | -6/Factory | Found Scrap Suit 9765 | -6/Factory | Spotted B-75 Beast 9776 | -6/Factory | Lost 5 allies 9788 | -6/Factory | Entered Lower Caves 9927 | -6/Lower Caves | Attracted the attention of an 0b10 checkpoint 10081 | -6/Lower Caves | Discovered new exit (range 11) 10093 | -6/Lower Caves | Entered another Lower Caves area 10093 | -6/Lower Caves | Spotted B-75 Beast 10095 | -6/Lower Caves | Attracted the attention of an 0b10 checkpoint 10358 | -6/Lower Caves | Encountered a Warlord checkpoint 10381 | -6/Lower Caves | Attracted the attention of an 0b10 outpost 10439 | -6/Lower Caves | Discovered new exit (range 9) 10449 | -6/Lower Caves | Entered Zion 10508 | -6/Zion | System corruption cleaned by Quarantine Array 10770 | -6/Zion | Found Prototype Launcher 10770 | -6/Zion | Identified Rocket Array 10798 | -6/Zion | Learned Factory emergency access door positions 10806 | -6/Zion | Learned location of 1 exit from Factory 10830 | -6/Zion | Turned away by Imprinter 10877 | -6/Zion | Given the Hacking Drone Bay 11007 | -6/Zion | Given A8's code to call for help 11266 | -6/Zion | Discovered new exit (range 15) 11284 | -6/Zion | Entered Proximity Caves 11286 | -5/Proximity Caves | Identified exit to Factory 11300 | -5/Proximity Caves | Learned Factory stockpile data 11549 | -5/Proximity Caves | Entered Factory 11549 | -5/Factory | Evolved 2 slots: Utility x2 11550 | -5/Factory | Identified exit to Factory 11550 | -5/Factory | Attached Gun Armor, gained temporary slots: Weapon x2 12013 | -5/Factory | Lost 3 parts (2u1w) 12111 | -5/Factory | Lost 3 parts (1u2w) 12138 | -5/Factory | Fabricated Imp. Cryofiber Web (x2) 12273 | -5/Factory | Discovered new exit (range 15) 12512 | -5/Factory | Discovered exit to Factory (range 5) 12548 | -5/Factory | Scrapoid reinforcements arrived 12553 | -5/Factory | Spotted B-75 Beast 12558 | -5/Factory | Allies destroyed B-75 Beast 12576 | -5/Factory | P-70 Sage assimilated allied 05F14-D 12611 | -5/Factory | Found Scrap Suit 12618 | -5/Factory | Lost 4 allies 12862 | -5/Factory | Entered Extension 12906 | -5/Extension | Rescued A7 13013 | -5/Extension | Rescued a captive Derelict 13089 | -5/Extension | Rescued a captive Derelict 13342 | -5/Extension | Spotted B-75 Beast 13350 | -5/Extension | Allies destroyed B-75 Beast 13359 | -5/Extension | Spotted B-75 Beast 13366 | -5/Extension | Destroyed B-75 Beast 13474 | -5/Extension | Rescued a captive Derelict 13514 | -5/Extension | Rescued a captive Derelict 13520 | -5/Extension | Rescued a captive Derelict 13702 | -5/Extension | Lost 4 allies 13762 | -5/Extension | First assault squad dispatched 13816 | -5/Extension | Found Prototype Protection 13817 | -5/Extension | Identified Med. Regenerative Plating 13838 | -5/Extension | Lost 3 allies 13886 | -5/Extension | Disrupted transfer network 13893 | -5/Extension | Discovered exit to Factory (range 12) 13898 | -5/Extension | Discovered new exit (range 8) 14013 | -5/Extension | Entered Cetus 14013 | -5/Cetus | Accompanied by 2 allies (A7) 14014 | -5/Cetus | System corruption reached 10% 14018 | -5/Cetus | Acquired a Cetus Manufacturing Module code from A7 14037 | -5/Cetus | Spotted Cetus Guard 14037 | -5/Cetus | Spotted Cetus Guard 14040 | -5/Cetus | Destroyed Cetus Guard 14042 | -5/Cetus | Destroyed Cetus Guard 14043 | -5/Cetus | Spotted Cetus Guard 14053 | -5/Cetus | Spotted Cetus Guard 14056 | -5/Cetus | Destroyed Cetus Guard 14080 | -5/Cetus | Destroyed Cetus Guard 14152 | -5/Cetus | Started Cetus Manufacturing Module 14155 | -5/Cetus | Enhanced Grunt warped into view, answering call for help 14168 | -5/Cetus | Enhanced Grunt warped into view, answering call for help 14169 | -5/Cetus | Discovered new exit (range 16) 14177 | -5/Cetus | Manufactured an Enhanced Grunt 14202 | -5/Cetus | Manufactured an Enhanced Grunt 14205 | -5/Cetus | Spotted Cetus Guard 14205 | -5/Cetus | Spotted Cetus Guard 14208 | -5/Cetus | Destroyed Cetus Guard 14208 | -5/Cetus | Spotted Cetus Guard 14214 | -5/Cetus | Allies destroyed Cetus Guard 14216 | -5/Cetus | Destroyed Cetus Guard 14216 | -5/Cetus | Spotted Cetus Guard 14224 | -5/Cetus | Destroyed Cetus Guard 14227 | -5/Cetus | Manufactured an Enhanced Grunt 14236 | -5/Cetus | Found Prototype Device 14236 | -5/Cetus | Identified Exp. Thermal Shield 14252 | -5/Cetus | Manufactured an Enhanced Grunt 14257 | -5/Cetus | Discovered exit to Factory (range 16) 14266 | -5/Cetus | Met Revision 17 14277 | -5/Cetus | Manufactured an Enhanced Grunt 14337 | -5/Cetus | Murdered A7 14341 | -5/Cetus | Extracted ID and sensor layout for unrecognized location from A7's data core 14417 | -5/Cetus | Entered Archives 14417 | -5/Archives | Accompanied by 6 allies 14544 | -5/Archives | Discovered exit to Factory (range 16) 14563 | -5/Archives | Discovered new exit (range 14) 14978 | -5/Archives | Entered Hub_04(d) 14978 | -5/Hub_04(d) | Accompanied by 4 allies 15140 | -5/Hub_04(d) | Garrison activated, responded to threat 15278 | -5/Hub_04(d) | First assault squad dispatched 15409 | -5/Hub_04(d) | Destroyed 7 combat bots 15429 | -5/Hub_04(d) | Network Hub disabled 15461 | -5/Hub_04(d) | Spotted Lightning 15466 | -5/Hub_04(d) | Spotted Lightning 15482 | -5/Hub_04(d) | Spotted Lightning 15505 | -5/Hub_04(d) | Destroyed Lightning 15506 | -5/Hub_04(d) | Core integrity fell below 50% 15522 | -5/Hub_04(d) | Destroyed Lightning 15543 | -5/Hub_04(d) | Destroyed 7 combat bots 15555 | -5/Hub_04(d) | Destroyed Lightning 15557 | -5/Hub_04(d) | Lost 9 parts (1p5u3w) 15586 | -5/Hub_04(d) | Discovered exit to Factory (range 15) 15603 | -5/Hub_04(d) | Crushed by falling debris 15604 | -5/Hub_04(d) | Core integrity fell below 20% 15605 | -5/Hub_04(d) | Network Hub disabled 15651 | -5/Hub_04(d) | Destroyed by X-67 Chaingunner with Heavy Machine Gun Last Messages --------------- 15603_ Slug penetrates Wall. 15605_ Component scanned: Terrain Scan Processor [U-05 Engineer]. 15605_ Penetrated by Slug. 15605_ Connecting with Terminal... 15605_ ALERT: Network intrusion management efficiency at 70%. >>Force(Sabotage) SYSTEM_VULNERABLE[Network Hub] NETWORK_OVERLOAD COORDINATES_RETRIEVED 15605_ ALERT: Suspicious activity at Terminal H002. Dispatching Investigation squad. 15606_ UICBEYDW DH>KSDX1WE|ZH %SJN8BQYLT 15607_ Penetrated by Slug. 15607_ Powered Hammer destroyed. 15609_ The unstable cave ceiling collapses. 15617_ W-25 Informer sends out distress signal. 15623_ System corrupted: Component data lost. 15639_ System corrupted: Matter fused (-5). 15645_ Penetrated by Slug. 15650_ Component scanned: Imp. Targeting Computer [H-71 Marshal]. Map ----- +----------------------------------------------------+ | ?????????????????????????????????????????????????? | | ?????????????????????????????????????????????????? | | ?????????????????????????????????????????????????? | | ?????????????????????????????????????????????????? | | ?????????????????????????????????????????????????? | | ?????????????????????????????????????????????????? | | ?????????????????????????????????????????????????? | | ?????????????????????????????????????????????????? | | ?????????????????????????????????????????????????? | | ?????????????????????????????????????????????????? | | ?????????????????????????????????????????????????? | | ?????????????????????????????????????????????????? | | ?????????????????????????????????????????????????? | | ???????????????##############????????????????????? | | ???????????????# #????????????????????? | | ???????????????# #????????????????????? | | ???????????????# """" """"g #????????????????????? | | ???????????????# """" """" #????????????????????? | | ???????????????# """" """" #?? ???????????????? | | ???????????????# """" """" #?# < #??????????????? | | ???????????????# g h #?# #??????????????? | | ???????????????# """" """"h #?# #??????????????? | | ????##/#????? ?# """" """" #?# #??????????????? | | ???? ????? ?# """"x"""" #?# #??????????????? | | ?? ? ??? ?# """" """" #?# #??????????????? | | ?? ?#? ?# C x @ #?# #??????????????? | | ??? ?# ####Y#########?# #??????????????? | | ??? # T H #????# #??????????????? | | ???? # "" #????# #######????????? | | ????? # ######## ##????# # #?????? | | ?????? ## ##########+####### # """" #?????? | | ?###### # ##+## """"" # # """" ] #?????? | | ? # ""T"" """ """ # # """" #?????? | | "" "" " # / + """" #?????? | | T """ """ """ # # ! #?????? | | """ " =" # # "T" #?????? | | % ##### #######+### # """ ##????? | | # # ####### ##????? #?# # #????? | | !=!! ########## ##"########????? | | |[!*]|! # " ## ##??????????? | | [!!!!| # # ##"#######?????? | | ########## ##### # "% #? | | ???????# [ # # T / | | ??????## [ " " + """ """ #? | | ??????#" " " " # # # ???? | | ??????# [ " " = # ############???? | | ??????## # # #??????????????? | | ???????#! # # ## # #??????????????? | | ??????## !!! # ## #??????????????? | | ??????# %!!! # " "" "# #??????????????? | +----------------------------------------------------+ Best States ------------- Heat Dissipation 102 Coolant Potential 160 Energy Generation 25 Energy Capacity 1350 Matter Stores 300 Matter Capacity 300 Sight Range 16 Terrain Scan Density 1010 Armor Coverage 1125 Resistance: TH 30 Phase Shifting 5 Evasion (%) 50 Melee Accuracy 6 Recoil Reduction 2 Particle Charging 25 Salvage Targeting 4 Offensive Hacking 14 Authchip Count 2 Trap Extractor Capacity 6 Item Schematics ----------------- Coolant Injector | -9/Recycling | Hacked Imp. Cryofiber Web | -6/Factory | Hacked Robot Schematics ------------------ None Fabricated ------------ Imp. Cryofiber Web | x2 | -5/Factory | Authchip Alien Tech Used ----------------- None Achievements -------------- None Challenges ------------ None Game ------ Seed CarbideGravityFocus Manual? 0 Play Time 01:42:21 Cumulative 778.1 hours Start 2024.08.11 @ 03:42:28 End 2024.08.11 @ 21:33:24 Sessions 5 Manual Loads 0 Difficulty Rogue Special Mode None Game No. 757 Rogue 757 Adventurer 0 Explorer 0 Win Type - Total 39 Types 14/4/11/2/0/0/5/2/1 Lore% 86 Gallery% 91 Achievement% 84 Wizard Run 0 Options --------- Layout 0 ASCII 0 Keyboard 0 Movement Numpad Keybinds 0 Fullscreen 1 Font 18/Smallcaps Map View 76x50 Zoom Use 0% Tactical HUD 1 Map Filters NONE Filters NONE Steam 1 RUN: 015e413a-c60f-4f41-b2bc-4aa893c2d8e3